[Event "*** Titled Tuesday 3|2 Blitz"]
[Site "Chess.com"]
[Date "2016.07.05"]
[Round "7"]
[White "macko06"]
[Black "TomsKantans"]
[Result "1/2-1/2"]
[WhiteElo "2240"]
[BlackElo "2423"]
[TimeControl "180+2"]
[EndTime "12:33:13 PDT"]
[Termination "Game drawn by agreement"]

1. d4 {[%clk 0:03:01.9]} 1... Nf6 {[%clk 0:02:52]} 2. c4 {[%clk 0:02:55.3]} 2...
g6 {[%clk 0:02:38.1]} 3. Nc3 {[%clk 0:02:55.5]} 3... d5 {[%clk 0:02:39.5]} 4.
Nf3 {[%clk 0:02:55.8]} 4... Bg7 {[%clk 0:02:38.1]} 5. Qb3 {[%clk 0:02:57.3]}
5... dxc4 {[%clk 0:02:35.2]} 6. Qxc4 {[%clk 0:02:59.2]} 6... O-O {[%clk
0:02:36.6]} 7. e4 {[%clk 0:02:59.8]} 7... Na6 {[%clk 0:02:38]} 8. Be2 {[%clk
0:03:00.8]} 8... c5 {[%clk 0:02:39.3]} 9. dxc5 {[%clk 0:02:55.5]} 9... Be6
{[%clk 0:02:37.1]} 10. Qd4 {[%clk 0:02:51.1]} 10... Qa5 {[%clk 0:02:30.4]} 11.
O-O {[%clk 0:02:48.4]} 11... Rfd8 {[%clk 0:02:20.7]} 12. Qa4 {[%clk 0:02:24.4]}
12... Qxa4 {[%clk 0:02:20.8]} 13. Nxa4 {[%clk 0:02:26.3]} 13... Nxe4 {[%clk
0:02:22.3]} 14. Bxa6 {[%clk 0:02:23.1]} 14... bxa6 {[%clk 0:02:24.2]} 15. Be3
{[%clk 0:02:17.2]} 15... Bd5 {[%clk 0:02:14.4]} 16. Rad1 {[%clk 0:01:57.6]}
16... Bc6 {[%clk 0:02:14.1]} 17. b3 {[%clk 0:01:55.6]} 17... Rac8 {[%clk
0:01:54.8]} 18. Rxd8+ {[%clk 0:01:44.4]} 18... Rxd8 {[%clk 0:01:56.7]} 19. Rc1
{[%clk 0:01:44.4]} 19... f5 {[%clk 0:01:42.6]} 20. Ne1 {[%clk 0:01:32.2]} 20...
e5 {[%clk 0:01:22.8]} 21. f3 {[%clk 0:01:21.2]} 21... Nf6 {[%clk 0:01:05.4]} 22.
Nc3 {[%clk 0:01:14.5]} 22... a5 {[%clk 0:01:05.3]} 23. Rd1 {[%clk 0:00:59.5]}
23... Rxd1 {[%clk 0:01:05.5]} 24. Nxd1 {[%clk 0:01:01.4]} 24... Nd5 {[%clk
0:01:06.6]} 25. Bd2 {[%clk 0:01:03]} 25... a4 {[%clk 0:01:05.6]} 26. b4 {[%clk
0:00:56.1]} 26... e4 {[%clk 0:01:03.6]} 27. fxe4 {[%clk 0:00:54]} 27... fxe4
{[%clk 0:01:05.5]} 28. Nc2 {[%clk 0:00:52.2]} 28... Kf7 {[%clk 0:00:54.3]} 29.
Nde3 {[%clk 0:00:50]} 29... Nc3 {[%clk 0:00:51.8]} 30. Nc4 {[%clk 0:00:41.7]}
30... Nxa2 {[%clk 0:00:38.8]} 31. b5 {[%clk 0:00:36.4]} 31... Bd5 {[%clk
0:00:25.9]} 32. Nd6+ {[%clk 0:00:34.8]} 32... Ke6 {[%clk 0:00:24.7]} 33. Nc8
{[%clk 0:00:35.3]} 33... Bb3 {[%clk 0:00:15.4]} 34. b6 {[%clk 0:00:29]} 34...
axb6 {[%clk 0:00:14]} 35. cxb6 {[%clk 0:00:29.9]} 35... Kd7 {[%clk 0:00:12.4]}
36. b7 {[%clk 0:00:27.6]} 36... Kc7 {[%clk 0:00:13.5]} 37. Na3 {[%clk
0:00:24.3]} 37... Kxb7 {[%clk 0:00:14.1]} 38. Nd6+ {[%clk 0:00:24.6]} 38... Kc6
{[%clk 0:00:15.4]} 39. Nxe4 {[%clk 0:00:25]} 39... Bf8 {[%clk 0:00:14.1]} 40.
Nb1 {[%clk 0:00:24.2]} 40... Bc2 {[%clk 0:00:14.9]} 41. Nec3 {[%clk 0:00:22]}
41... Nb4 {[%clk 0:00:10.7]} 42. Na3 {[%clk 0:00:20.8]} 42... Nd3 {[%clk
0:00:10.2]} 43. Nxc2 {[%clk 0:00:21]} 43... a3 {[%clk 0:00:11.6]} 44. Na2 {[%clk
0:00:21.6]} 44... Kd5 {[%clk 0:00:12.4]} 45. Bc3 {[%clk 0:00:20]} 45... Kc4
{[%clk 0:00:12.9]} 46. Nxa3+ {[%clk 0:00:13]} 46... Bxa3 {[%clk 0:00:13.3]} 47.
Bd2 {[%clk 0:00:10.9]} 47... Kb3 {[%clk 0:00:13.4]} 48. Nc3 {[%clk 0:00:08.6]}
48... Kc2 {[%clk 0:00:14.4]} 49. Ne4 {[%clk 0:00:09.8]} 49... Ne5 {[%clk
0:00:12.8]} 50. Bf4 {[%clk 0:00:09.4]} 50... Nf7 {[%clk 0:00:12.8]} 51. Nf6
{[%clk 0:00:09.9]} 51... h5 {[%clk 0:00:13.3]} 52. Nd5 {[%clk 0:00:08]} 52...
Kd3 {[%clk 0:00:12.9]} 53. g3 {[%clk 0:00:05.3]} 53... Ke4 {[%clk 0:00:13.7]}
54. Nc3+ {[%clk 0:00:05.6]} 54... Kf3 {[%clk 0:00:14.8]} 55. Nd5 {[%clk
0:00:04.7]} 55... g5 {[%clk 0:00:14.4]} 56. Bc7 {[%clk 0:00:05.1]} 56... Bc5+
{[%clk 0:00:14.9]} 57. Kf1 {[%clk 0:00:06]} 57... Bd4 {[%clk 0:00:13.1]} 58. Nb4
{[%clk 0:00:05.6]} 58... Nh6 {[%clk 0:00:10.8]} 59. Nc2 {[%clk 0:00:06.6]} 59...
Bc3 {[%clk 0:00:09.5]} 60. Bb6 {[%clk 0:00:05.4]} 60... Ng4 {[%clk 0:00:10.1]}
61. Bg1 {[%clk 0:00:06.4]} 61... Nf6 {[%clk 0:00:07]} 62. Nd4+ {[%clk
0:00:06.9]} 62... Bxd4 {[%clk 0:00:08]} 63. Bxd4 {[%clk 0:00:08.1]} 63... Ne4
{[%clk 0:00:09.9]} 64. Kg1 {[%clk 0:00:08.6]} 64... g4 {[%clk 0:00:10.1]} 65.
Be5 {[%clk 0:00:08.2]} 65... Ng5 {[%clk 0:00:10.2]} 66. Bb8 {[%clk 0:00:09.5]}
66... Nh3+ {[%clk 0:00:11.3]} 67. Kh1 {[%clk 0:00:10.1]} 67... Kf2 {[%clk
0:00:12.3]} 68. Bc7 {[%clk 0:00:10.5]} 68... Kf1 {[%clk 0:00:13.3]} 69. Bb6
{[%clk 0:00:11.1]} 69... Ng5 {[%clk 0:00:14.3]} 70. Bc7 {[%clk 0:00:08.2]} 70...
Ne4 {[%clk 0:00:15.2]} 71. Bb6 {[%clk 0:00:08.9]} 71... Ng5 {[%clk 0:00:14.6]}
72. Be3 {[%clk 0:00:08.2]} 72... Nf3 {[%clk 0:00:15.6]} 73. Ba7 {[%clk 0:00:09]}
73... h4 {[%clk 0:00:16.3]} 74. gxh4 {[%clk 0:00:09.9]} 74... Nxh4 {[%clk
0:00:17.9]} 75. Bb8 {[%clk 0:00:10.6]} 75... Nf3 {[%clk 0:00:15]} 76. Bg3 {[%clk
0:00:10.6]} 76... Ng5 {[%clk 0:00:16.2]} 77. Bf4 {[%clk 0:00:10.4]} 77... Nh3
{[%clk 0:00:16.1]} 78. Bg3 {[%clk 0:00:11.9]} 78... Ke2 {[%clk 0:00:16.2]} 79.
Kg2 {[%clk 0:00:12.8]} 79... Ke3 {[%clk 0:00:16.7]} 80. Bb8 {[%clk 0:00:11.9]}
80... Ke4 {[%clk 0:00:18.6]} 81. Kg3 {[%clk 0:00:12.8]} 81... Kf5 {[%clk
0:00:20.3]} 82. Ba7 {[%clk 0:00:14.2]} 82... Ng5 {[%clk 0:00:22]} 1/2-1/2

[Event "*** Titled Tuesday 3|2 Blitz"]
[Site "Chess.com"]
[Date "2016.07.05"]
[Round "8"]
[White "fireheart92"]
[Black "rithwik2002"]
[Result "1-0"]
[WhiteElo "2059"]
[BlackElo "1926"]
[TimeControl "180+2"]
[EndTime "12:40:51 PDT"]
[Termination "fireheart92 won by resignation"]

1. d4 {[%clk 0:03:01.9]} 1... Nf6 {[%clk 0:02:52.8]} 2. Nf3 {[%clk 0:03:02]}
2... g6 {[%clk 0:02:52.7]} 3. Bg5 {[%clk 0:02:53.9]} 3... Bg7 {[%clk 0:02:50.4]}
4. Nbd2 {[%clk 0:02:54.3]} 4... d5 {[%clk 0:02:47.7]} 5. e3 {[%clk 0:02:50.6]}
5... O-O {[%clk 0:02:46.1]} 6. c3 {[%clk 0:02:48.3]} 6... Nbd7 {[%clk
0:02:37.4]} 7. Be2 {[%clk 0:02:45.9]} 7... c6 {[%clk 0:02:37.6]} 8. O-O {[%clk
0:02:46.7]} 8... Re8 {[%clk 0:02:38]} 9. c4 {[%clk 0:02:46.5]} 9... h6 {[%clk
0:02:21.7]} 10. Bh4 {[%clk 0:02:46.7]} 10... Ne4 {[%clk 0:02:06.5]} 11. Nxe4
{[%clk 0:02:43.8]} 11... dxe4 {[%clk 0:02:08.4]} 12. Nd2 {[%clk 0:02:44.1]}
12... f5 {[%clk 0:02:08.1]} 13. c5 {[%clk 0:02:45]} 13... Qc7 {[%clk 0:01:51.1]}
14. Bc4+ {[%clk 0:02:11]} 14... Kh7 {[%clk 0:01:50.2]} 15. f3 {[%clk 0:02:05.3]}
15... exf3 {[%clk 0:01:39.6]} 16. Nxf3 {[%clk 0:02:05.3]} 16... e5 {[%clk
0:01:40.7]} 17. Bg3 {[%clk 0:01:31.4]} 17... f4 {[%clk 0:00:58.6]} 18. Qc2
{[%clk 0:01:31.3]} 18... fxg3 {[%clk 0:00:55.7]} 19. Bf7 {[%clk 0:01:31.5]}
19... gxh2+ {[%clk 0:00:50.8]} 20. Kh1 {[%clk 0:01:31.7]} 20... Rf8 {[%clk
0:00:21.3]} 21. Ng5+ {[%clk 0:01:31.1]} 21... hxg5 {[%clk 0:00:21]} 22. Qxg6+
{[%clk 0:01:32.1]} 22... Kh8 {[%clk 0:00:21.9]} 23. Qh5+ {[%clk 0:01:33.2]} 1-0

[Event "*** Titled Tuesday 3|2 Blitz"]
[Site "Chess.com"]
[Date "2016.07.05"]
[Round "8"]
[White "Semetey"]
[Black "Usurpov"]
[Result "0-1"]
[WhiteElo "2442"]
[BlackElo "2358"]
[TimeControl "180+2"]
[EndTime "12:41:06 PDT"]
[Termination "Usurpov won by checkmate"]

1. d4 {[%clk 0:03:01.9]} 1... Nf6 {[%clk 0:03:00.2]} 2. Nc3 {[%clk 0:03:03.2]}
2... d5 {[%clk 0:02:52.8]} 3. Bf4 {[%clk 0:03:04.1]} 3... Bf5 {[%clk 0:02:50.6]}
4. f3 {[%clk 0:03:04.4]} 4... e6 {[%clk 0:02:40.8]} 5. g4 {[%clk 0:03:05.5]}
5... Bg6 {[%clk 0:02:41.4]} 6. h4 {[%clk 0:03:06.7]} 6... h5 {[%clk 0:02:37.4]}
7. g5 {[%clk 0:03:07.9]} 7... Nfd7 {[%clk 0:02:36.9]} 8. e3 {[%clk 0:03:09.3]}
8... c6 {[%clk 0:02:32.4]} 9. Bd3 {[%clk 0:03:02.9]} 9... Bxd3 {[%clk
0:02:32.1]} 10. Qxd3 {[%clk 0:03:00]} 10... g6 {[%clk 0:02:32.5]} 11. Nge2
{[%clk 0:02:59.6]} 11... Be7 {[%clk 0:02:31.8]} 12. e4 {[%clk 0:02:59.9]} 12...
Qa5 {[%clk 0:02:29.1]} 13. O-O-O {[%clk 0:03:00.2]} 13... O-O {[%clk 0:02:20.9]}
14. Ng3 {[%clk 0:02:57.9]} 14... dxe4 {[%clk 0:02:07.9]} 15. fxe4 {[%clk
0:02:55.7]} 15... e5 {[%clk 0:02:08.2]} 16. Be3 {[%clk 0:02:34.6]} 16... exd4
{[%clk 0:02:07.2]} 17. Bxd4 {[%clk 0:02:35.8]} 17... Ne5 {[%clk 0:02:07]} 18.
Qe2 {[%clk 0:02:33.9]} 18... Ng4 {[%clk 0:02:05.2]} 19. Kb1 {[%clk 0:02:34.6]}
19... Nd7 {[%clk 0:02:03.4]} 20. Rhg1 {[%clk 0:02:22.4]} 20... Rfe8 {[%clk
0:01:59.1]} 21. Nf1 {[%clk 0:02:05.4]} 21... Bc5 {[%clk 0:01:52.4]} 22. Bxc5
{[%clk 0:01:47.7]} 22... Nxc5 {[%clk 0:01:51.4]} 23. Rxg4 {[%clk 0:01:48.6]}
23... hxg4 {[%clk 0:01:48.1]} 24. Qxg4 {[%clk 0:01:50.1]} 24... Rad8 {[%clk
0:01:39.1]} 25. Rc1 {[%clk 0:01:50.8]} 25... Qb4 {[%clk 0:01:37.1]} 26. Ng3
{[%clk 0:01:51.8]} 26... Qd4 {[%clk 0:01:21]} 27. h5 {[%clk 0:01:52.9]} 27... b5
{[%clk 0:01:19.2]} 28. hxg6 {[%clk 0:01:52.7]} 28... fxg6 {[%clk 0:01:20.6]} 29.
Rh1 {[%clk 0:01:41.9]} 29... b4 {[%clk 0:01:19.9]} 30. Nce2 {[%clk 0:01:42.9]}
30... Qg7 {[%clk 0:01:18.4]} 31. Nf4 {[%clk 0:01:31.2]} 31... Na4 {[%clk
0:01:15.7]} 32. c3 {[%clk 0:01:20.4]} 32... bxc3 {[%clk 0:01:16]} 33. b3 {[%clk
0:01:21.4]} 33... c2+ {[%clk 0:01:16.8]} 34. Kxc2 {[%clk 0:01:21.4]} 34... Qb2#
{[%clk 0:01:17]} 0-1

[Event "*** Titled Tuesday 3|2 Blitz"]
[Site "Chess.com"]
[Date "2016.07.05"]
[Round "8"]
[White "VerdeNotte"]
[Black "oskariot"]
[Result "1-0"]
[WhiteElo "2630"]
[BlackElo "2279"]
[TimeControl "180+2"]
[EndTime "12:41:07 PDT"]
[Termination "VerdeNotte won on time"]

1. e4 {[%clk 0:03:01.9]} 1... c5 {[%clk 0:02:59.6]} 2. Nc3 {[%clk 0:03:02.5]}
2... e6 {[%clk 0:02:52.9]} 3. f4 {[%clk 0:03:02]} 3... Nc6 {[%clk 0:02:52.5]} 4.
Nf3 {[%clk 0:03:02.8]} 4... Nge7 {[%clk 0:02:50.1]} 5. d4 {[%clk 0:02:57.6]}
5... cxd4 {[%clk 0:02:45]} 6. Nxd4 {[%clk 0:02:51.6]} 6... Nxd4 {[%clk
0:02:46.9]} 7. Qxd4 {[%clk 0:02:53.5]} 7... Nc6 {[%clk 0:02:47.6]} 8. Qf2 {[%clk
0:02:54.4]} 8... d5 {[%clk 0:02:49.3]} 9. Be3 {[%clk 0:02:41.4]} 9... Bb4 {[%clk
0:02:02.5]} 10. exd5 {[%clk 0:02:31]} 10... exd5 {[%clk 0:01:38.7]} 11. a3
{[%clk 0:02:21.7]} 11... Bxc3+ {[%clk 0:01:22]} 12. bxc3 {[%clk 0:02:23.6]}
12... O-O {[%clk 0:01:20.8]} 13. Bd3 {[%clk 0:02:23.6]} 13... Qf6 {[%clk
0:01:16]} 14. O-O {[%clk 0:02:20.9]} 14... Bf5 {[%clk 0:01:11.5]} 15. Rac1
{[%clk 0:02:10.5]} 15... Rfe8 {[%clk 0:01:04.7]} 16. Rfe1 {[%clk 0:02:07.6]}
16... Be4 {[%clk 0:00:53.8]} 17. c4 {[%clk 0:02:02.1]} 17... dxc4 {[%clk
0:00:17.5]} 18. Bxc4 {[%clk 0:02:02.7]} 18... Rad8 {[%clk 0:00:18]} 19. Re2
{[%clk 0:01:52.5]} 19... Qg6 {[%clk 0:00:18.7]} 20. Bxa7 {[%clk 0:01:44.3]}
20... Bxg2 {[%clk 0:00:05.9]} 21. f5 {[%clk 0:01:40.9]} 21... Qg5 {[%clk
0:00:06]} 22. Be3 {[%clk 0:01:40.8]} 22... Rxe3 {[%clk 0:00:04.5]} 23. Qxe3
{[%clk 0:01:42.2]} 1-0

[Event "*** Titled Tuesday 3|2 Blitz"]
[Site "Chess.com"]
[Date "2016.07.05"]
[Round "8"]
[White "saraswathii"]
[Black "mortalbovine"]
[Result "1-0"]
[WhiteElo "2036"]
[BlackElo "1761"]
[TimeControl "180+2"]
[EndTime "12:41:09 PDT"]
[Termination "saraswathii won by checkmate"]

1. e4 {[%clk 0:02:56.4]} 1... d5 {[%clk 0:03:00.1]} 2. exd5 {[%clk 0:02:56.1]}
2... Qxd5 {[%clk 0:03:02]} 3. Nc3 {[%clk 0:02:56.3]} 3... Qa5 {[%clk 0:03:03]}
4. d4 {[%clk 0:02:56.9]} 4... c6 {[%clk 0:03:03.6]} 5. Nf3 {[%clk 0:02:57.4]}
5... Bg4 {[%clk 0:03:03.8]} 6. Be2 {[%clk 0:02:57.9]} 6... e6 {[%clk 0:03:04.8]}
7. Ne5 {[%clk 0:02:55.7]} 7... Bxe2 {[%clk 0:03:03]} 8. Qxe2 {[%clk 0:02:55.9]}
8... Bb4 {[%clk 0:02:53.5]} 9. Bd2 {[%clk 0:02:53.9]} 9... Nf6 {[%clk 0:02:53]}
10. O-O {[%clk 0:02:35.7]} 10... Qd8 {[%clk 0:02:48.3]} 11. Bg5 {[%clk
0:02:22.8]} 11... Qxd4 {[%clk 0:02:36.6]} 12. Rad1 {[%clk 0:02:13.3]} 12... Qb6
{[%clk 0:02:34.5]} 13. Bxf6 {[%clk 0:02:11]} 13... gxf6 {[%clk 0:02:35.4]} 14.
Ng4 {[%clk 0:02:11.2]} 14... Bxc3 {[%clk 0:02:29.9]} 15. bxc3 {[%clk 0:02:11.4]}
15... Ke7 {[%clk 0:02:26.8]} 16. Qf3 {[%clk 0:02:00]} 16... Nd7 {[%clk
0:02:27.5]} 17. Qd3 {[%clk 0:01:59.8]} 17... Rad8 {[%clk 0:02:26.7]} 18. Qd6+
{[%clk 0:01:58.8]} 18... Ke8 {[%clk 0:02:26.4]} 19. Rfe1 {[%clk 0:01:44.6]}
19... Rg8 {[%clk 0:02:16.5]} 20. Nh6 {[%clk 0:01:17.4]} 20... Rg6 {[%clk
0:02:09.3]} 21. Nxf7 {[%clk 0:01:15]} 21... Kxf7 {[%clk 0:02:06.9]} 22. Qxe6+
{[%clk 0:01:13.6]} 22... Kg7 {[%clk 0:02:03.3]} 23. Rxd7+ {[%clk 0:01:08.6]}
23... Rxd7 {[%clk 0:02:03.2]} 24. Qxd7+ {[%clk 0:01:10.5]} 24... Kh6 {[%clk
0:02:03]} 25. Qh3+ {[%clk 0:01:10.9]} 25... Kg7 {[%clk 0:02:00.3]} 26. Re7+
{[%clk 0:01:06.6]} 26... Kf8 {[%clk 0:02:01.2]} 27. Re1 {[%clk 0:01:06]} 27...
Kg7 {[%clk 0:02:01.7]} 28. Qd7+ {[%clk 0:00:59.5]} 28... Kh6 {[%clk 0:02:01.6]}
29. g3 {[%clk 0:00:59.4]} 29... Qc5 {[%clk 0:01:51]} 30. Re7 {[%clk 0:00:58.8]}
30... Qb6 {[%clk 0:01:29.4]} 31. Qh3+ {[%clk 0:00:54.5]} 31... Kg5 {[%clk
0:01:27.2]} 32. Qh4+ {[%clk 0:00:54.8]} 32... Kf5 {[%clk 0:01:28.1]} 33. Qf4#
{[%clk 0:00:54.9]} 1-0

[Event "*** Titled Tuesday 3|2 Blitz"]
[Site "Chess.com"]
[Date "2016.07.05"]
[Round "8"]
[White "SavelijTartakover"]
[Black "simplerXiao"]
[Result "1-0"]
[WhiteElo "2510"]
[BlackElo "2335"]
[TimeControl "180+2"]
[EndTime "12:41:54 PDT"]
[Termination "SavelijTartakover won by resignation"]

1. d4 {[%clk 0:00:57.7]} 1... Nf6 {[%clk 0:02:59.9]} 2. c4 {[%clk 0:00:58.3]}
2... e5 {[%clk 0:03:00.9]} 3. dxe5 {[%clk 0:00:58.9]} 3... Ng4 {[%clk
0:03:00.2]} 4. Bf4 {[%clk 0:01:00.3]} 4... Nc6 {[%clk 0:03:00.6]} 5. Nf3 {[%clk
0:01:00.9]} 5... Bb4+ {[%clk 0:03:00.5]} 6. Nc3 {[%clk 0:01:01]} 6... Qe7 {[%clk
0:02:59.7]} 7. Qd5 {[%clk 0:01:01.6]} 7... Bxc3+ {[%clk 0:02:57]} 8. bxc3 {[%clk
0:01:02.1]} 8... f6 {[%clk 0:02:58.2]} 9. exf6 {[%clk 0:01:02.8]} 9... Nxf6
{[%clk 0:02:59.1]} 10. Qd3 {[%clk 0:01:04.2]} 10... O-O {[%clk 0:02:59.6]} 11.
g3 {[%clk 0:01:05.1]} 11... d6 {[%clk 0:03:00.4]} 12. Bg2 {[%clk 0:01:06.5]}
12... Ne4 {[%clk 0:02:58.1]} 13. O-O {[%clk 0:01:05.9]} 13... Nc5 {[%clk
0:02:57.2]} 14. Qd2 {[%clk 0:01:05.5]} 14... Be6 {[%clk 0:02:56.8]} 15. Nd4
{[%clk 0:00:57.4]} 15... Ne5 {[%clk 0:02:29.1]} 16. Bxe5 {[%clk 0:00:53.7]}
16... dxe5 {[%clk 0:02:29.4]} 17. Nxe6 {[%clk 0:00:54.7]} 17... Nxe6 {[%clk
0:02:30.6]} 18. Bxb7 {[%clk 0:00:55]} 18... Rad8 {[%clk 0:02:28.1]} 19. Bd5
{[%clk 0:00:55.9]} 19... Kh8 {[%clk 0:02:29.3]} 20. Qe3 {[%clk 0:00:55.3]} 20...
Ng5 {[%clk 0:02:24.6]} 21. h4 {[%clk 0:00:53.5]} 21... Nh3+ {[%clk 0:02:17.6]}
22. Kg2 {[%clk 0:00:51.2]} 22... Nf4+ {[%clk 0:02:16.2]} 23. gxf4 {[%clk
0:00:51.9]} 23... Rxf4 {[%clk 0:02:16.6]} 24. Rh1 {[%clk 0:00:49.6]} 24... Qf6
{[%clk 0:02:14.6]} 25. Qg3 {[%clk 0:00:45.6]} 25... c6 {[%clk 0:02:14.2]} 26.
Bf3 {[%clk 0:00:38.6]} 26... e4 {[%clk 0:02:15.4]} 27. Bg4 {[%clk 0:00:39.5]}
27... Rf8 {[%clk 0:02:12.4]} 28. Raf1 {[%clk 0:00:39.3]} 28... Qe5 {[%clk
0:02:08.7]} 29. e3 {[%clk 0:00:36.8]} 29... Qxc3 {[%clk 0:01:42.7]} 30. exf4
{[%clk 0:00:35.1]} 30... Qxc4 {[%clk 0:01:44.3]} 31. h5 {[%clk 0:00:34.1]} 31...
Rd8 {[%clk 0:01:40.8]} 32. h6 {[%clk 0:00:34.5]} 32... Rd3 {[%clk 0:01:40.6]}
33. hxg7+ {[%clk 0:00:34.6]} 33... Kg8 {[%clk 0:01:41.6]} 34. Qh4 {[%clk
0:00:34.6]} 34... h5 {[%clk 0:01:32.9]} 35. Qxh5 {[%clk 0:00:33.5]} 35... Kxg7
{[%clk 0:01:30.2]} 36. Qg5+ {[%clk 0:00:30.8]} 36... Kf7 {[%clk 0:01:30.8]} 37.
Rh7+ {[%clk 0:00:29.8]} 1-0

[Event "*** Titled Tuesday 3|2 Blitz"]
[Site "Chess.com"]
[Date "2016.07.05"]
[Round "8"]
[White "tigra"]
[Black "stefanodinn"]
[Result "1-0"]
[WhiteElo "2460"]
[BlackElo "2239"]
[TimeControl "180+2"]
[EndTime "12:42:11 PDT"]
[Termination "tigra won on time"]

1. e4 {[%clk 0:03:00.9]} 1... c5 {[%clk 0:03:00.2]} 2. Nf3 {[%clk 0:02:58]} 2...
d6 {[%clk 0:03:01]} 3. d4 {[%clk 0:02:57.9]} 3... cxd4 {[%clk 0:03:01.6]} 4.
Nxd4 {[%clk 0:02:59.8]} 4... Nf6 {[%clk 0:03:01.7]} 5. Nc3 {[%clk 0:03:01.4]}
5... a6 {[%clk 0:03:00.4]} 6. Bg5 {[%clk 0:03:02.3]} 6... Nbd7 {[%clk
0:02:55.2]} 7. Bc4 {[%clk 0:03:00.7]} 7... e6 {[%clk 0:02:30.8]} 8. Qe2 {[%clk
0:02:49.9]} 8... h6 {[%clk 0:02:27.8]} 9. Bh4 {[%clk 0:02:49.7]} 9... Ne5 {[%clk
0:02:27.7]} 10. Bb3 {[%clk 0:02:47.6]} 10... g5 {[%clk 0:02:28.2]} 11. Bg3
{[%clk 0:02:47.9]} 11... Bg7 {[%clk 0:02:29.4]} 12. O-O-O {[%clk 0:02:47.2]}
12... Qe7 {[%clk 0:02:30.4]} 13. h4 {[%clk 0:02:45.2]} 13... Bd7 {[%clk
0:02:29.5]} 14. hxg5 {[%clk 0:02:39.7]} 14... hxg5 {[%clk 0:02:29.8]} 15. f3
{[%clk 0:02:40.4]} 15... O-O-O {[%clk 0:02:06.4]} 16. Bf2 {[%clk 0:02:34.4]}
16... Rxh1 {[%clk 0:01:27]} 17. Rxh1 {[%clk 0:02:34.1]} 17... Rh8 {[%clk
0:01:28.5]} 18. Rd1 {[%clk 0:02:30.4]} 18... Nh5 {[%clk 0:01:24.8]} 19. Qe3
{[%clk 0:02:30.6]} 19... Bh6 {[%clk 0:01:19.6]} 20. Nde2 {[%clk 0:02:28.2]}
20... g4 {[%clk 0:01:18.2]} 21. f4 {[%clk 0:02:28.9]} 21... g3 {[%clk
0:01:12.2]} 22. Bg1 {[%clk 0:01:06.5]} 22... Ng4 {[%clk 0:00:39.4]} 23. Qa7
{[%clk 0:01:06.3]} 23... Nxf4 {[%clk 0:00:23.3]} 24. Nxf4 {[%clk 0:01:04.8]}
24... Bxf4+ {[%clk 0:00:23.6]} 25. Kb1 {[%clk 0:01:06.7]} 25... Be5 {[%clk
0:00:13.7]} 26. Bb6 {[%clk 0:01:04.3]} 26... Bc6 {[%clk 0:00:13.9]} 27. Nd5
{[%clk 0:01:03.4]} 27... exd5 {[%clk 0:00:13.1]} 28. exd5 {[%clk 0:01:04.7]}
28... Nf2 {[%clk 0:00:03.5]} 29. dxc6 {[%clk 0:01:04.4]} 1-0

[Event "*** Titled Tuesday 3|2 Blitz"]
[Site "Chess.com"]
[Date "2016.07.05"]
[Round "8"]
[White "Wolverine_master"]
[Black "PowerThinking2650"]
[Result "1-0"]
[WhiteElo "2036"]
[BlackElo "2151"]
[TimeControl "180+2"]
[EndTime "12:42:50 PDT"]
[Termination "Wolverine_master won by resignation"]

1. e4 {[%clk 0:03:01.9]} 1... e5 {[%clk 0:02:59.9]} 2. Nf3 {[%clk 0:03:02.9]}
2... Nc6 {[%clk 0:03:00.9]} 3. d4 {[%clk 0:03:04.4]} 3... exd4 {[%clk
0:03:00.8]} 4. Bc4 {[%clk 0:03:05.3]} 4... Nf6 {[%clk 0:03:01.5]} 5. e5 {[%clk
0:03:06.1]} 5... d5 {[%clk 0:03:00]} 6. Bb5 {[%clk 0:03:07.1]} 6... Ne4 {[%clk
0:02:59.2]} 7. Nxd4 {[%clk 0:03:08.1]} 7... Bd7 {[%clk 0:03:00.3]} 8. Bxc6
{[%clk 0:03:08.4]} 8... bxc6 {[%clk 0:03:01.8]} 9. O-O {[%clk 0:03:09.8]} 9...
Bc5 {[%clk 0:03:02.5]} 10. f3 {[%clk 0:03:08.9]} 10... Ng5 {[%clk 0:03:00.6]}
11. f4 {[%clk 0:03:09.9]} 11... Ne4 {[%clk 0:02:59.1]} 12. Be3 {[%clk
0:03:07.9]} 12... Bb6 {[%clk 0:02:58.5]} 13. Nd2 {[%clk 0:03:05.6]} 13... c5
{[%clk 0:02:53.4]} 14. N4b3 {[%clk 0:02:56.1]} 14... c4 {[%clk 0:02:42.4]} 15.
Nd4 {[%clk 0:02:18.2]} 15... c5 {[%clk 0:02:37.6]} 16. Nxe4 {[%clk 0:02:13.5]}
16... cxd4 {[%clk 0:02:35.4]} 17. Nd6+ {[%clk 0:02:13.7]} 17... Ke7 {[%clk
0:02:24]} 18. Bxd4 {[%clk 0:02:14.5]} 18... Bxd4+ {[%clk 0:02:24.8]} 19. Qxd4
{[%clk 0:02:15.8]} 19... Qb6 {[%clk 0:02:25.5]} 20. Rad1 {[%clk 0:01:59.2]}
20... Bc6 {[%clk 0:02:15.9]} 21. b3 {[%clk 0:01:31.7]} 21... cxb3 {[%clk
0:02:07.3]} 22. axb3 {[%clk 0:01:32]} 22... g6 {[%clk 0:02:06.4]} 23. f5 {[%clk
0:01:22.5]} 23... Qxd4+ {[%clk 0:01:59.8]} 24. Rxd4 {[%clk 0:01:16.8]} 24... f6
{[%clk 0:01:55.4]} 25. fxg6 {[%clk 0:00:57.5]} 25... fxe5 {[%clk 0:01:54.9]} 26.
g7 {[%clk 0:00:58.8]} 26... Ke6 {[%clk 0:00:40.9]} 27. Nf7 {[%clk 0:00:31.8]}
27... Rhg8 {[%clk 0:00:34.7]} 28. Rg4 {[%clk 0:00:32.7]} 28... Bb5 {[%clk
0:00:22.7]} 29. Rf2 {[%clk 0:00:29.5]} 29... a5 {[%clk 0:00:21.1]} 30. Nh6
{[%clk 0:00:30.1]} 30... d4 {[%clk 0:00:20.6]} 31. Nxg8 {[%clk 0:00:29.7]} 31...
Rxg8 {[%clk 0:00:20.9]} 32. Rf8 {[%clk 0:00:30.3]} 1-0